Cogmind - Beta 15 @@@ ROGUE MODE // 2025.05.14 @ 21:14:57 Player: vainquit Result: Destroyed by B-86 Titan with Hardcell Cannon Performance ------------- Evolutions (5) 2500 Regions Visited (13) 2600 Robots Destroyed (97) 485 Value Destroyed (4332) 4332 Prototype IDs (34) 680 Alien Tech Used (0) 0 Bonus (3806) 3806 TOTAL SCORE: 14403 Bonus ------- High Alert Combat Kills 79 Follower Combat Kills 2091 Entered DSFs 500 Aligned with FarCom 300 Acquired ECA 300 Met Warlord at Base 500 MAIN.C Attacked Warlord 500 Warlord Defense Kills 1178 Friendly Fire -1642 Cogmind --------- Core Integrity 0/1000 Matter 278/300 Energy 99/100 System Corruption 16% Temperature Cool (0) Movement Core (50) Location -5/Warlord Parts ------- > --- POWER (1) -------- (None) > --- PROPULSION (4) --- (None) > --- UTILITY (9) ------ Advanced Melee Analysis Suite Advanced Melee Analysis Suite Target Analyzer Core Analyzer Makeshift Hacking Suite > --- WEAPON (3) ------- Heavy Pick > --- INVENTORY (5) ---- Improved Shock Absorption System Heavy Rocket Launcher Heavy Pick Sapper Charge Peak State ------------ > --- POWER ------------ Light Angular Momentum Engine > --- PROPULSION ------- Improved Treads Improved Medium Treads Armored Medium Treads Armored Medium Treads > --- UTILITY ---------- Large Storage Unit Advanced Melee Analysis Suite Advanced Melee Analysis Suite Advanced Melee Analysis Suite Target Analyzer Core Analyzer Improved Armor Integrity Analyzer Advanced Actuator Array Improved Core Shielding > --- WEAPON ----------- Vortex Catalyst Activator Heavy Mace > --- INVENTORY -------- Light Fission Core Armored Leg Advanced Melee Analysis Suite Improved Shock Absorption System Drone Bay Heavy Rocket Launcher Field Lobotomy Kit Heavy Pick Heavy Pick Heavy Pick Sapper Charge Sapper Charge Sapper Charge [Rating: 94] Favorites ----------- Power Light Nuclear Core Engine Light Angular Momentum Engine Power Core Light Nuclear Core Reactor Light Antimatter Reactor Propulsion Compact Wheel Treads Armored Medium Treads Leg Flexi-carbon Leg Wheel Compact Wheel Utility Large Storage Unit Device High-powered Tractor Beam Storage Large Storage Unit Processor Advanced Melee Analysis Suite Hackware Hacking Suite Protection Layered Light Armor Plating Weapon Heavy Pick Energy Gun Heavy Laser Energy Cannon Heavy Particle Cannon Ballistic Gun Assault Rifle Ballistic Cannon Magnetic Acceleration Cannon Launcher Heavy Rocket Launcher Special Weapon Remote Datajack Impact Weapon Makeshift Hammer Slashing Weapon Katana Piercing Weapon Heavy Pick Build | -11 -10 -10 -10 -9 -8 -8 -7 -7 -6 -5 -5 -5 -5 ------- Run | Yrd Mat Min Exi Min Mat Sto Fac DSF Fac Fac Upp Upp War Slots Evolved 10 | . . . . . 4 . 2 . 2 2 . . . Power . | . . . . . . . . . . . . . . Propulsion 2 | . . . . . . . . . 1 1 . . . Utility 7 | . . . . . 4 . 2 . 1 . . . . Weapon 1 | . . . . . . . . . . 1 . . . Parts Attached 143 | 7 5 5 1 . 7 10 2 12 49 8 18 4 15 Power 13 | 1 1 1 . . . 2 . . 4 1 1 1 1 Engine 7 | 1 1 . . . . 2 . . 1 . 1 1 . Core 4 | . . 1 . . . . . . 2 1 . . . Reactor 2 | . . . . . . . . . 1 . . . 1 Propulsion 26 | 2 . 2 . . 1 1 . 3 10 1 4 1 1 Treads 14 | 2 . . . . . . . 3 4 . 3 1 1 Leg 5 | . . . . . . . . . 4 . 1 . . Wheel 7 | . . 2 . . 1 1 . . 2 1 . . . Hover . | . . . . . . . . . . . . . . Flight . | . . . . . . . . . . . . . . Utility 62 | 2 2 . 1 . 4 3 2 7 21 2 9 2 7 Device 26 | 1 1 . . . 1 2 1 2 10 1 5 1 1 Storage 3 | 1 1 . 1 . . . . . . . . . . Processor 13 | . . . . . 1 . . . 7 1 1 . 3 Hackware 7 | . . . . . 1 . . 1 2 . . . 3 Protection 13 | . . . . . 1 1 1 4 2 . 3 1 . Artifact . | . . . . . . . . . . . . . . Weapon 42 | 2 2 2 . . 2 4 . 2 14 4 4 . 6 Energy Gun 9 | . . 2 . . . 2 . . 5 . . . . Energy Cannon 4 | . . . . . 1 . . . . 1 . . 2 Ballistic Gun 6 | 2 . . . . 1 1 . . 2 . . . . Ballistic Cannon 6 | . 2 . . . . . . 1 3 . . . . Launcher 3 | . . . . . . 1 . 1 . . . . 1 Special Weapon 2 | . . . . . . . . . 2 . . . . Impact Weapon 7 | . . . . . . . . . 1 . 3 . 3 Slashing Weapon 1 | . . . . . . . . . 1 . . . . Piercing Weapon 4 | . . . . . . . . . . 3 1 . . Special Melee Weapon . | . . . . . . . . . . . . . . Unidentified Prototypes 11 | . . . . . 1 4 . . 2 . . . 4 Corrupted Parts 2 | . . . . . . . . . . . 1 . 1 System Corruption 10 | . . . . . . . . . . . 1 . 9 Parts Lost 59 | . 2 7 . . 1 . . 5 19 3 10 2 10 Power 10 | . 1 1 . . . . . . 3 1 2 . 2 Propulsion 15 | . . 2 . . 1 . . . 4 2 3 1 2 Utility 24 | . 1 1 . . . . . 4 8 . 4 1 5 Weapon 10 | . . 3 . . . . . 1 4 . 1 . 1 Highest Loss Streak 7 | . 2 7 . . 1 . . 5 4 2 5 2 7 To Critical Strikes . | . . . . . . . . . . . . . . Average Backups 13 | . 8 12 12 13 14 14 14 14 14 14 14 13 11 Power 2 | . . . 2 3 3 3 4 3 4 3 2 3 1 Propulsion 2 | . 3 3 3 3 4 2 2 1 1 2 1 1 . Utility 3 | . 1 3 3 3 3 3 5 5 3 4 3 3 3 Weapon 3 | . 2 4 3 3 3 3 2 2 3 4 4 4 4 Tool/Special . | . . . . . . . . . . . . . . Unused Backups 29 | . 1 . . 1 2 3 . 5 6 . 7 . 4 Power 5 | . . . . . . . . 1 1 . . . 3 Propulsion 3 | . 1 . . . . . . . . . 2 . . Utility 12 | . . . . 1 1 1 . 4 2 . 2 . 1 Weapon 9 | . . . . . 1 2 . . 3 . 3 . . Tool/Special . | . . . . . . . . . . . . . . Average Slot Usage (%) 89 | . 94 83 71 78 80 96 88 88 88 88 97 88 94 Engine 3 | . 11 8 . . . 7 7 7 2 . 3 5 4 Core 2 | . . 4 14 14 9 1 . . 2 1 1 . . Treads 10 | . 28 12 . 7 2 . . 6 8 . 9 18 21 Leg 2 | . . . . . . . . . 4 10 4 . . Wheel 5 | . . 7 14 14 15 18 15 7 2 3 6 1 . Device 9 | . 10 8 . . 3 13 17 25 12 9 7 10 5 Storage 7 | . 14 14 14 14 9 9 7 7 6 5 5 5 4 Processor 19 | . . . . . 8 9 7 7 23 34 29 24 34 Hackware 1 | . . . . . 8 9 7 4 1 . . . . Protection 5 | . . . . . 5 9 9 10 8 . 6 2 3 Ballistic Gun 5 | . 16 8 28 28 10 7 15 3 1 . . . . Ballistic Cannon 2 | . 11 15 . . . . . 4 3 . . . . Impact Weapon 4 | . . . . . . . . . 1 . 10 16 15 Piercing Weapon 2 | . . . . . . . . . . 14 6 . . Peak Build Rating 94 | 7 8 8 11 11 27 31 36 45 68 74 81 77 94 Average Rating 49 | 4 7 7 9 10 21 29 32 39 54 67 74 73 79 On Entrance 32 | . 7 8 7 10 11 26 31 36 45 56 69 69 77 Naked Turns . | . . . . . . . . . . . . . . Heaviest Build 68 | 12 32 32 68 28 37 42 51 67 61 47 56 48 53 Greatest Support 107 | 40 40 40 16 16 32 28 28 40 60 56 84 107 107 Greatest Overweight (x) 5 | . . 1 4 1 2 1 1 5 5 2 3 2 1 Average Overweight (x) . | . . . 1 1 1 1 1 3 1 1 . . . Largest Inventory Capacity 20 | 8 15 15 20 15 15 15 15 15 15 15 15 15 15 Average Capacity 14 | 7 10 15 15 15 15 15 15 15 15 15 15 15 14 Most Carried 15 | 2 14 14 13 15 15 15 15 15 15 15 15 15 15 Average Carried 13 | . 8 12 12 13 14 14 14 14 14 14 14 13 13 Final Capacity 15 | 8 15 15 15 15 15 15 15 15 15 15 15 15 5 Final Carried 15 | 2 14 9 13 15 15 15 14 15 13 15 15 12 4 Class Distribution -------------------- 46% | Mutant 21% | Derelict-Gladiator 11% | Scavenger-Mutant 8% | Gladiator 6% | Scavenger-Gladiator 3% | Commander-Mutant Dominant Class ---------------- Mutant | -10/Materials Mutant | -10/Mines Mutant | -10/Exiles Mutant | -9/Mines Mutant | -8/Materials Mutant | -8/Storage Commander-Mutant | -7/Factory Mutant | -7/DSF Mutant | -6/Factory Scavenger-Gladiator | -5/Factory Derelict-Gladiator | -5/Upper Caves Derelict-Gladiator | -5/Upper Caves Derelict-Gladiator | -5/Warlord Resources | -11 -10 -10 -10 -9 -8 -8 -7 -7 -6 -5 -5 -5 -5 ----------- Run | Yrd Mat Min Exi Min Mat Sto Fac DSF Fac Fac Upp Upp War Matter Collected 3830 | 233 209 77 . 266 . 287 . 327 1677 92 343 54 265 Remotely 1448 | . 36 . . . . 94 . 327 991 . . . . Salvage Created 3696 | 52 347 46 . 17 . 137 . 105 1453 244 650 290 355 Parts 166 | 3 18 . . 1 . 13 . 2 78 14 23 8 6 Haulers Intercepted 1 | . 1 . . . . . . . . . . . . Recyclers Shooed 11 | . 2 1 . . . . . . 7 1 . . . Parts Field Recycled . | . . . . . . . . . . . . . . Retrieved Matter . | . . . . . . . . . . . . . . Parts Self-Destructed 10 | . . . . . . . . . . . 6 4 . Prevented 11 | . . . . . . . . . . . 11 . . Kills | -11 -10 -10 -10 -9 -8 -8 -7 -7 -6 -5 -5 -5 -5 ------- Run | Yrd Mat Min Exi Min Mat Sto Fac DSF Fac Fac Upp Upp War Combat Hostiles Destroyed 92 | . 5 5 . 1 . 5 . 5 33 9 10 8 11 Melee 11 | . . . . . . . . . . 3 6 1 1 Guns 20 | . 5 2 . 1 . 1 . . 11 . . . . Cannons 17 | . . 3 . . . 1 . 2 11 . . . . AOE 30 | . . . . . . 3 . 3 7 6 . 5 6 Classes Destroyed 21 | 1 2 1 . 1 . 1 . 2 8 . 2 . 3 Worker 1 | . . . . . . . . . 1 . . . . Builder 3 | . . . . . . . . . 3 . . . . Tunneler 1 | . . . . . . . . . 1 . . . . Hauler 1 | . 1 . . . . . . . . . . . . Recycler 3 | 1 1 . . . . . . . 1 . . . . Watcher 1 | . . . . . . . . . 1 . . . . Swarmer 24 | . . . . 1 . 3 . . 8 6 1 5 . Cutter 3 | . . . . . . . . 3 . . . . . Saboteur 1 | . . . . . . . . . . . . . 1 Grunt 26 | . 5 . . . . . . 1 10 . 5 3 2 Brawler 1 | . . . . . . . . . 1 . . . . Duelist 1 | . . . . . . . . . 1 . . . . Sentry 9 | . . . . . . 2 . . 5 1 1 . . Specialist 1 | . . . . . . . . 1 . . . . . Hunter 5 | . . . . . . . . . 3 . 2 . . Programmer 9 | . . . . . . . . . 5 2 . . 2 Behemoth 1 | . . . . . . . . . . . 1 . . Executioner 2 | . . . . . . . . . . . . . 2 Decomposer 1 | . . . . . . . . . . . . 1 . Samaritan 3 | . . . . . . . . . . . 2 1 . Assembled 5 | . . 5 . . . . . . . . . . . Bouncer 1 | . . . . . . . . . . . . . 1 Mutant 3 | . . . . . . . . . . . . . 3 Best Kill Streak 7 | 1 3 3 . 1 . 3 . 3 5 6 5 5 7 Combat Bots Only 7 | . 2 3 . 1 . 3 . 3 5 6 5 5 7 Max Kills in Single Turn 4 | 1 1 1 . 1 . 2 . 2 4 3 1 4 2 Gunslinging . | . . . . . . . . . . . . . . Exploded 4 | . . . . . . 2 . 2 4 3 . 4 2 Melee 1 | . . . . . . . . . . 1 1 1 1 Uniques/NPCs Destroyed 1 | . . . . . . . . . . . . . 1 Warlord (-5/Warlord) Combat | -11 -10 -10 -10 -9 -8 -8 -7 -7 -6 -5 -5 -5 -5 -------- Run | Yrd Mat Min Exi Min Mat Sto Fac DSF Fac Fac Upp Upp War Hostile Shots Fired 986 | . 25 65 . 14 2 15 . 27 515 19 142 30 132 Missed 323 | . 2 19 . 7 . 10 . 8 180 4 37 14 42 Hits 663 | . 23 46 . 7 2 5 . 19 335 15 105 16 90 Melee 14 | . . 5 . . . . . 2 4 . . . 3 Projectile 649 | . 23 41 . 7 2 5 . 17 331 15 105 16 87 AOE 6 | . . . . . . . . 3 2 . . . 1 Critical Strikes 28 | . 1 . . . . . . 1 11 2 4 . 9 Part Disruptions 1 | . . . . . . . . . . . . . 1 Damage Taken 12172 | . 323 708 . 59 105 66 85 739 5095 227 2048 297 2420 Core 1926 | . 44 83 . 13 . 17 41 131 592 41 203 18 743 Absorbed by Shields 339 | . . . . . . . . 64 164 70 41 . . Regen/Repaired (Parts) 253 | . . . . . . . . . . . . . 253 Core Remaining (%) 69 | 100 . . . 44 . 96 . 75 30 . . . . Volleys Fired 265 | 1 32 20 . 3 15 15 . 15 148 4 . 3 9 Largest 2 | 2 2 2 . 2 2 2 . 2 2 1 . 1 1 Hottest 138 | 40 60 95 . 40 100 136 . 50 138 90 . 39 20 Shots Fired 367 | 2 64 29 . 6 17 22 . 17 194 4 . 3 9 Gun 195 | 2 62 11 . 6 2 10 . 6 96 . . . . Cannon 138 | . 2 18 . . 15 10 . 6 85 2 . . . Launcher 21 | . . . . . . 2 . 5 4 2 . 3 5 Special 13 | . . . . . . . . . 9 . . . 4 Kinetic 263 | 2 64 18 . 6 2 6 . 12 153 . . . . Thermal 70 | . . 11 . . 15 14 . . 28 2 . . . Explosive 16 | . . . . . . 2 . 5 4 2 . 3 . Electromagnetic . | . . . . . . . . . . . . . . Entropic 5 | . . . . . . . . . . . . . 5 Robot Hit Streak 24 | 2 24 6 . 6 . 5 . 5 18 1 . . 5 Robot Miss Streak 5 | . 2 2 . 2 . 2 . 2 5 1 . 3 1 Penetration Max 1 | . . . . . . . . . 1 . . . . Secondary Targets . | . . . . . . . . . . . . . . Shots Hit Robots 336 | 2 47 20 . 3 . 12 . 9 128 18 46 16 35 Core Hits 155 | 2 17 9 . 2 . 9 . 10 68 13 12 7 6 Critical Kills 1 | . . . . . . . . . . . 1 . . Critical Parts Destroyed 20 | . . . . . . . . . 6 . 4 3 7 Critical Strikes 35 | . . . . . . 1 . . 11 3 10 3 7 Burn 2 | . . . . . . 1 . . 1 . . . . Blast 4 | . . . . . . . . . 4 . . . . Smash 21 | . . . . . . . . . 6 . 5 3 7 Impale 8 | . . . . . . . . . . 3 5 . . Melee Attacks 177 | . . . . . . . . . 22 25 59 19 52 Impact 125 | . . . . . . . . . 19 . 39 18 49 Slashing 3 | . . . . . . . . . 3 . . . . Piercing 49 | . . . . . . . . . . 25 20 1 3 Sneak Attacks 16 | . . . . . . . . . 1 2 5 3 5 Combat Hostiles 1 | . . . . . . . . . 1 . . . . Follow-up Attacks 32 | . . . . . . . . . . 5 15 4 8 Damage Inflicted 15050 | 20 487 335 . 44 . 402 . 592 4634 1182 2159 1425 3770 Guns 2333 | 20 472 85 . 44 . 141 . 84 1487 . . . . Cannons 2214 | . 15 250 . . . 100 . 129 1720 . . . . Explosions 4314 | . . . . . . 161 . 379 798 523 . 498 1955 Melee 6189 | . . . . . . . . . 629 659 2159 927 1815 Ramming . | . . . . . . . . . . . . . . Kinetic 3815 | 20 487 250 . 44 . 81 . 213 2720 . . . . Thermal 797 | . . 85 . . . 160 . . 487 65 . . . Explosive 2193 | . . . . . . 161 . 379 697 458 . 498 . Electromagnetic 101 | . . . . . . . . . 101 . . . . Impact 4665 | . . . . . . . . . 603 . 1394 853 1815 Slashing 26 | . . . . . . . . . 26 . . . . Piercing 1498 | . . . . . . . . . . 659 765 74 . Entropic 1955 | . . . . . . . . . . . . . 1955 Highest Corruption 16 | . . . . . . . 1 1 4 . 1 . 16 Average Corruption 3 | . . . . . . . 1 1 3 . 1 . 5 Corruption Purged 1 | . . . . . . . . . . . 1 . . Corruption Blocked . | . . . . . . . . . . . . . . Effects 40 | . . . . . . . . . 34 . . . 6 Message Errors 5 | . . . . . . . . . 4 . . . 1 Matter Fused 16 | . . . . . . . . . 15 . . . 1 Heat Flow Errors 4 | . . . . . . . . . 3 . . . 1 Energy Discharges 2 | . . . . . . . . . 2 . . . . Parts Rejected 2 | . . . . . . . . . 2 . . . . Data Loss (minor) 6 | . . . . . . . . . 5 . . . 1 Data Loss (major) 1 | . . . . . . . . . . . . . 1 Misfires 3 | . . . . . . . . . 3 . . . . Misdirections 1 | . . . . . . . . . . . . . 1 Overload Shots . | . . . . . . . . . . . . . . Overflow Damage 2130 | . . 5 . . . . . 38 333 105 467 297 885 Projectiles 58 | . . 5 . . . . . . 53 . . . . Explosions 304 | . . . . . . . . 38 18 12 . . 236 Melee 1768 | . . . . . . . . . 262 93 467 297 649 Knockbacks 35 | . 1 5 . . . . . . 13 . 6 3 7 Impact 18 | . . . . . . . . . 2 . 6 3 7 Kinetic 15 | . 1 5 . . . . . . 9 . . . . Secondary 2 | . . . . . . . . . 2 . . . . Self-Inflicted Damage 282 | . . . . . . . . 142 140 . . . . Shots 7 | . . . . . . . . 4 3 . . . . Rammed . | . . . . . . . . . . . . . . Targets Rammed . | . . . . . . . . . . . . . . Kicked . | . . . . . . . . . . . . . . Crushed . | . . . . . . . . . . . . . . Highest Temperature 331 | . 27 104 . 4 78 82 . 195 331 26 293 . 227 Average Temperature 77 | . 8 55 . 3 26 29 . 75 105 19 97 . 102 Received Heat Transfer 2809 | . 201 . . . . 27 . . 1426 18 765 96 276 Effects 6 | . . . . . . . . . 6 . . . . Shutdowns 1 | . . . . . . . . . 1 . . . . Energy Bleed 3 | . . . . . . . . . 3 . . . . Interference 2 | . . . . . . . . . 2 . . . . Siege Activations . | . . . . . . . . . . . . . . Martial Activations . | . . . . . . . . . . . . . . Shielding Activations . | . . . . . . . . . . . . . . Robots Disrupted 1 | . . . . . . . . . 1 . . . . Combat Hostiles 1 | . . . . . . . . . 1 . . . . Robots Corrupted 15 | . . . . . . . . . 4 . 4 3 4 Combat Hostiles 14 | . . . . . . . . . 4 . 4 2 4 Parts Fried 18 | . . . . . . . . . 2 . 7 3 6 Impact Corruptions 49 | . . . . . . . . . 9 . 10 17 13 Robots Melted . | . . . . . . . . . . . . . . Combat Hostiles . | . . . . . . . . . . . . . . Parts Melted 2 | . . . . . . . . . 2 . . . . Heat Transferred 1507 | . . 199 . . . 333 . . 925 50 . . . Parts Sabotaged 5 | . . . . . . . . . . . . . 5 Parts Stolen . | . . . . . . . . . . . . . . Parts Stripped . | . . . . . . . . . . . . . . Power Chain Reactions . | . . . . . . . . . . . . . . Alert | -11 -10 -10 -10 -9 -8 -8 -7 -7 -6 -5 -5 -5 -5 ------- Run | Yrd Mat Min Exi Min Mat Sto Fac DSF Fac Fac Upp Upp War Maximum Alert Level 2 | . . . . . . . . 1 2 1 . . . Low Security (%) 77 | 100 100 100 . 100 100 100 100 69 65 49 . . . Level 1 17 | . . . . . . . . 30 24 50 . . . Level 2 4 | . . . . . . . . . 10 . . . . Level 3 . | . . . . . . . . . . . . . . Level 4 . | . . . . . . . . . . . . . . Level 5 . | . . . . . . . . . . . . . . High Security . | . . . . . . . . . . . . . . Max Security . | . . . . . . . . . . . . . . Sterilizations 1 | . . . . . . . . 1 . . . . . Peak Influence 677 | 5 60 . . 30 15 70 23 213 677 329 . . . Initial 329 | . . . . . . . 23 . 111 329 . . . Average 124 | . 12 . . 3 1 8 3 148 203 215 . . . Influence Increases 3249 | 5 169 . . 30 59 219 4 281 1370 333 305 180 294 Destroy 0b10 Robot/C 1880 | . 100 . . 20 . 120 . 180 680 180 200 160 240 Destroy 0b10 Robot/NC 55 | 5 10 . . . . . . . 40 . . . . Destroy Leader 344 | . 32 . . 10 . 40 . 20 162 30 30 20 . Allied During Kill 101 | . . . . . . 21 . 40 16 . . . 24 Successful Hack 87 | . 12 . . . 17 8 4 . 24 22 . . . Disable Machine 270 | . . . . . 15 15 . . 195 45 . . . Destroy Structure 257 | . . . . . 12 15 . 41 133 56 . . . Partial Spotted 15 | . . . . . . . . . 15 . . . . Lose Combat Pursuer 240 | . 15 . . . 15 . . . 105 . 75 . 30 Influence Decreases 3121 | 5 169 . . 30 59 168 55 68 909 717 543 182 216 Entered New Map 644 | . . . . . . . 28 . 102 345 108 11 50 Time Decay 1823 | 5 149 . . 30 59 106 27 . 574 342 344 151 36 Lost Part 490 | . 20 . . . . . . 49 190 30 91 20 90 Lost Ally 102 | . . . . . . . . 19 43 . . . 40 Purge Threat 62 | . . . . . . 62 . . . . . . . Squads Dispatched 17 | . 2 . . . . 1 . 2 10 2 . . . Investigation 3 | . 1 . . . . 1 . . 1 . . . . Extermination 7 | . . . . . . . . . 6 1 . . . Reinforcement 7 | . 1 . . . . . . 2 3 1 . . . Assault . | . . . . . . . . . . . . . . Garrison . | . . . . . . . . . . . . . . Intercept . | . . . . . . . . . . . . . . Searches Triggered . | . . . . . . . . . . . . . . Construction Impeded 1 | . . . . . . . . . 1 . . . . Haulers Reinforced . | . . . . . . . . . . . . . . Active Scanning Responses . | . . . . . . . . . . . . . . Cargo Convoy Interrupts . | . . . . . . . . . . . . . . Stealth | -11 -10 -10 -10 -9 -8 -8 -7 -7 -6 -5 -5 -5 -5 --------- Run | Yrd Mat Min Exi Min Mat Sto Fac DSF Fac Fac Upp Upp War Distress Signals 13 | . 3 . . . 2 2 . . 4 . . . 2 Communications Jammed 14 | . . . . . . . . . 14 . . . . Distress Signals 14 | . . . . . . . . . 14 . . . . Times Spotted 183 | . 10 13 . 3 4 11 . 9 56 14 15 8 40 Peak Tracking Total 18 | . 3 17 . 3 7 3 . 5 7 6 5 5 18 Tactical Retreats 14 | . 1 2 . . 1 . . . 4 . 5 . 1 Traps | -11 -10 -10 -10 -9 -8 -8 -7 -7 -6 -5 -5 -5 -5 ------- Run | Yrd Mat Min Exi Min Mat Sto Fac DSF Fac Fac Upp Upp War Traps Triggered 1 | . . . . . . . 1 . . . . . . Indirectly . | . . . . . . . . . . . . . . Trap Hack Attempts . | . . . . . . . . . . . . . . Triggered . | . . . . . . . . . . . . . . Disarmed . | . . . . . . . . . . . . . . Reprogrammed . | . . . . . . . . . . . . . . Reused . | . . . . . . . . . . . . . . Traps Extracted . | . . . . . . . . . . . . . . Installed . | . . . . . . . . . . . . . . Triggered . | . . . . . . . . . . . . . . Machines | -11 -10 -10 -10 -9 -8 -8 -7 -7 -6 -5 -5 -5 -5 ---------- Run | Yrd Mat Min Exi Min Mat Sto Fac DSF Fac Fac Upp Upp War Machines Disabled 21 | . . . . . 1 1 . . 13 3 . . 3 Max in Single Turn 2 | . . . . . 1 1 . . 2 2 . . 1 Garrison Access 2 | . . . . . 1 . . . 1 . . . . Machines Repaired . | . . . . . . . . . . . . . . Machines Dismantled . | . . . . . . . . . . . . . . Machines Sabotaged . | . . . . . . . . . . . . . . Overloaded Fab Kills . | . . . . . . . . . . . . . . Hacking | -11 -10 -10 -10 -9 -8 -8 -7 -7 -6 -5 -5 -5 -5 --------- Run | Yrd Mat Min Exi Min Mat Sto Fac DSF Fac Fac Upp Upp War Machines Accessed 35 | . 4 . 1 . 3 5 2 . 11 5 2 . 2 Terminals 24 | . 4 . . . 2 5 2 . 5 5 1 . . Fabricators 2 | . . . . . . . . . 2 . . . . Repair Stations . | . . . . . . . . . . . . . . Recycling Units 1 | . . . . . . . . . 1 . . . . Scanalyzers 1 | . . . . . . . . . 1 . . . . Garrison Access 3 | . . . . . 1 . . . 2 . . . . Total Hacks 70 | . 10 . 1 . 8 13 4 . 21 8 2 . 3 Successful 37 | . 3 . 1 . 5 6 3 . 12 2 2 . 3 Failed 33 | . 7 . . . 3 7 1 . 9 6 . . . Catastrophic 9 | . 1 . . . 1 2 . . 3 2 . . . Database Lockouts . | . . . . . . . . . . . . . . Manual 21 | . 4 . 1 . 6 6 1 . 3 . . . . Terminals 51 | . 10 . . . 7 13 4 . 8 8 1 . . Fabricators 4 | . . . . . . . . . 4 . . . . Repair Stations . | . . . . . . . . . . . . . . Recycling Units 1 | . . . . . . . . . 1 . . . . Scanalyzers 3 | . . . . . . . . . 3 . . . . Garrison Access 6 | . . . . . 1 . . . 5 . . . . Terminal Hacks 27 | . 3 . 1 . 4 5 3 . 4 2 2 . 3 Record 3 | . . . . . . . . . . . 1 . 2 Open Door 2 | . . . . . . . . . . . 1 . 1 Open DSF 2 | . . . . . . . 1 . 1 . . . . Level Access Points 1 | . . . . . . . . . . 1 . . . Branch Access Points 3 | . 1 . . . 1 . . . 1 . . . . Terminal Index 4 | . . . . . 1 1 1 . 1 . . . . Unreport Threat 2 | . . . . . . 2 . . . . . . . Locate Traps 4 | . 1 . . . 1 1 . . . 1 . . . Transport Status 1 | . . . . . . . 1 . . . . . . Recall Investigation 1 | . . . . . . . . . 1 . . . . Zone Layout 3 | . 1 . . . 1 1 . . . . . . . Proto ID Catalog 1 | . . . 1 . . . . . . . . . . Fabricator Hacks 4 | . . . . . . . . . 4 . . . . Load Schematic 2 | . . . . . . . . . 2 . . . . Build 2 | . . . . . . . . . 2 . . . . Repair Station Hacks . | . . . . . . . . . . . . . . Recycling Unit Hacks 1 | . . . . . . . . . 1 . . . . Retrieve Components 1 | . . . . . . . . . 1 . . . . Scanalyzer 2 | . . . . . . . . . 2 . . . . Insert Component 1 | . . . . . . . . . 1 . . . . Analyze 1 | . . . . . . . . . 1 . . . . Garrison Access Hacks 2 | . . . . . 1 . . . 1 . . . . Seal Access 2 | . . . . . 1 . . . 1 . . . . Unauthorized Hacks 1 | . . . . . . 1 . . . . . . . Terminals 1 | . . . . . . 1 . . . . . . . Botnet 1 | . . . . . . 1 . . . . . . . Fabricators . | . . . . . . . . . . . . . . Repair Stations . | . . . . . . . . . . . . . . Recycling Units . | . . . . . . . . . . . . . . Scanalyzers . | . . . . . . . . . . . . . . Garrison Access . | . . . . . . . . . . . . . . Data Cores Recovered . | . . . . . . . . . . . . . . Used . | . . . . . . . . . . . . . . Hacking Detections 22 | . 3 . . . 2 5 1 . 6 5 . . . Full Trace Events 2 | . 1 . . . . . . . 1 . . . . Feedback Events 1 | . . . . . . . . . 1 . . . . Corruption 1 | . . . . . . . . . 1 . . . . Feedback Blocked . | . . . . . . . . . . . . . . Robot Schematics Acquired . | . . . . . . . . . . . . . . Robots Built . | . . . . . . . . . . . . . . Authchips . | . . . . . . . . . . . . . . Time . | . . . . . . . . . . . . . . Total Robot Build Rating . | . . . . . . . . . . . . . . Part Schematics Acquired 1 | . . . . . . . . . 1 . . . . Parts Built 4 | . . . . . . . . . 4 . . . . Authchips 2 | . . . . . . . . . 2 . . . . Time 146 | . . . . . . . . . 146 . . . . Total Part Build Rating 12 | . . . . . . . . . 12 . . . . Parts Repaired . | . . . . . . . . . . . . . . Time . | . . . . . . . . . . . . . . Parts Recycled . | . . . . . . . . . . . . . . Recycled Matter . | . . . . . . . . . . . . . . Retrieved Matter . | . . . . . . . . . . . . . . Retrieved Components 10 | . . . . . . . . . 10 . . . . Parts Scanalyzed 1 | . . . . . . . . . 1 . . . . Part Schematics Acquired 1 | . . . . . . . . . 1 . . . . Parts Damaged . | . . . . . . . . . . . . . . Bothacking | -11 -10 -10 -10 -9 -8 -8 -7 -7 -6 -5 -5 -5 -5 ------------ Run | Yrd Mat Min Exi Min Mat Sto Fac DSF Fac Fac Upp Upp War Used RIF Installer . | . . . . . . . . . . . . . . Robots Hacked 7 | . . . . . . . . . 7 . . . . Non-combat 7 | . . . . . . . . . 7 . . . . Combat . | . . . . . . . . . . . . . . Robot Hacks Applied 7 | . . . . . . . . . 7 . . . . find_chute 3 | . . . . . . . . . 3 . . . . find_fabricator 1 | . . . . . . . . . 1 . . . . find_dsf 1 | . . . . . . . . . 1 . . . . find_station 1 | . . . . . . . . . 1 . . . . check_alert 1 | . . . . . . . . . 1 . . . . Relay Couplers Released . | . . . . . . . . . . . . . . Fabnet Peak Effective % . | . . . . . . . . . . . . . . Robots Rewired . | . . . . . . . . . . . . . . Allies Hacked . | . . . . . . . . . . . . . . Hacks Repelled . | . . . . . . . . . . . . . . Allies | -11 -10 -10 -10 -9 -8 -8 -7 -7 -6 -5 -5 -5 -5 -------- Run | Yrd Mat Min Exi Min Mat Sto Fac DSF Fac Fac Upp Upp War Total Allies 15 | . . . . . . 10 . . 1 . . . 4 Largest Group 10 | . . . . . . 10 10 10 2 . . . 3 Highest-Rated Group 317 | . . . . . . 173 173 173 96 . . . 317 Highest-Rated Ally 159 | . . . . . . 29 29 29 81 . . . 159 Initial Warlord ECA Mod 41 | . . . . . . . . . 9 8 8 8 8 Total Orders 16 | . . . . . . . 5 3 2 . . . 6 STAY 10 | . . . . . . . 4 2 1 . . . 3 ROAM 2 | . . . . . . . . . . . . . 2 FOLLOW 3 | . . . . . . . 1 1 1 . . . . RETURN 1 | . . . . . . . . . . . . . 1 Ally Attacks 99 | . . . . . . 3 . 31 24 . . . 41 Total Damage 3549 | . . . . . . 48 . 265 424 . . . 2812 Kills 18 | . . . . . . 1 . 4 2 . . . 11 Allies Corrupted . | . . . . . . . . . . . . . . Allies Melted . | . . . . . . . . . . . . . . Field Lobotomies 5 | . . . . . . . . . 1 . . . 4 Intel | -11 -10 -10 -10 -9 -8 -8 -7 -7 -6 -5 -5 -5 -5 ------- Run | Yrd Mat Min Exi Min Mat Sto Fac DSF Fac Fac Upp Upp War Active Infowar (turns) 3388 | . 382 121 . . . . . 1 2045 693 146 . . Optics 2526 | . . . . . . . . . 1689 693 144 . . Seismic 503 | . 382 121 . . . . . . . . . . . Jamming 557 | . . . . . . . . 1 411 109 36 . . Robot Analysis Total . | . . . . . . . . . . . . . . Derelict Logs Recovered 5 | . . . . 2 . . . . . . 1 2 . Drone Launches 2 | . . . . . . . . . . . . . 2 Drone Recoveries . | . . . . . . . . . . . . . . Exploration | -11 -10 -10 -10 -9 -8 -8 -7 -7 -6 -5 -5 -5 -5 ------------- Run | Yrd Mat Min Exi Min Mat Sto Fac DSF Fac Fac Upp Upp War Turns Passed 9822 | 119 756 211 459 234 563 495 264 221 2995 769 1212 383 1141 Spaces Moved 5849 | 66 385 118 393 194 406 356 228 107 1490 523 751 212 620 Core 66 | 7 . . . . . . . . . . . . 59 Treads 2019 | 59 385 43 . . . . . 1 503 . 313 163 552 Legs 544 | . . . . . . . . . 338 195 2 . 9 Wheels 3220 | . . 75 393 194 406 356 228 106 649 328 436 49 . Hover . | . . . . . . . . . . . . . . Flight . | . . . . . . . . . . . . . . Fastest Speed 50 | 50 160 115 115 115 115 110 110 110 115 93 93 130 50 Average Speed 137 | 148 160 131 115 115 115 110 110 142 151 124 136 157 154 Slowest Speed 260 | 160 160 160 160 115 130 110 110 165 250 130 260 166 190 Overloaded Moves . | . . . . . . . . . . . . . . Propulsion Burnouts . | . . . . . . . . . . . . . . Robots Hopped 1 | . . . . . . . . . 1 . . . . Potential Cave-ins 1 | . . . . . . . . . . . . . 1 Cave-ins Triggered 1 | . . . . . . . . . . . . . 1 Exploration Rate (%) 44 | 4 50 25 65 36 33 55 6 88 47 16 80 44 67 Regions Visited 13 Branch Regions 7 Pre-discovered Areas 3 | . . 1 . 1 . . . . . . 1 . . Known Exits Taken 6 | . 1 . . . 1 1 1 . 1 1 . . . Unknown Exits Taken 6 | 1 . 1 1 1 . . . . . . 1 1 . Scrap Searched 6 | . . . . 1 . . . . . . 4 1 . Spaces Dug 47 | . . . . . 14 2 . . 13 6 . . 12 Terrain Destroyed 398 | . . . . . 14 15 . 57 138 27 . 32 115 Melee 22 | . . . . . . . . . 6 4 . . 12 Projectile 48 | . . . . . 14 4 . 3 25 2 . . . AOE 328 | . . . . . . 11 . 54 107 21 . 32 103 Terrain Rammed . | . . . . . . . . . . . . . . Walls Destroyed . | . . . . . . . . . . . . . . Machines Disabled . | . . . . . . . . . . . . . . Actions | -11 -10 -10 -10 -9 -8 -8 -7 -7 -6 -5 -5 -5 -5 --------- Run | Yrd Mat Min Exi Min Mat Sto Fac DSF Fac Fac Upp Upp War Total 7080 | 82 468 144 399 202 481 443 240 159 1986 600 878 241 757 Wait 407 | 7 26 . . . 45 37 9 . 190 29 21 5 38 Move 5833 | 65 384 117 392 193 405 355 227 106 1487 522 750 211 619 Hop 1 | . . . . . . . . . 1 . . . . Pick Up 98 | 2 15 . 4 4 3 8 1 7 23 6 17 . 8 Fast Attach 96 | 7 4 . 1 . 6 7 . 8 31 6 15 1 10 Attach 57 | . . 5 . 1 . 3 2 3 23 3 5 3 9 Detach 35 | . 1 . 1 . 1 3 . 5 14 2 4 1 3 Swap 55 | . 1 2 . . 1 2 1 6 20 6 6 4 6 Drop 105 | . 5 . 1 1 5 13 . 9 28 3 19 1 20 Fire 265 | 1 32 20 . 3 15 15 . 15 148 4 . 3 9 Melee 127 | . . . . . . . . . 21 19 41 12 34 Ram . | . . . . . . . . . . . . . . Kick . | . . . . . . . . . . . . . . Crush . | . . . . . . . . . . . . . . Escape Stasis 1 | . . . . . . . . . . . . . 1 Rewire . | . . . . . . . . . . . . . . Trap . | . . . . . . . . . . . . . . Miscellaneous . | . . . . . . . . . . . . . . Route ------- -11/Scrapyard -10/Materials (discovered 4 exits: [*Mat x2] / *Min x2) -10/Mines -10/Exiles (discovered 2 exits: [*Min x2]) -9/Mines -8/Materials (discovered 4 exits: *Fac x2 / *Sto x2) -8/Storage -7/Factory -7/DSF -6/Factory (discovered 4 exits: *Fac x2 / *Low x2) -5/Factory (discovered 5 exits: Fac x4 / *Upp) -5/Upper Caves -5/Upper Caves -5/Warlord History --------- Turn | Location | Event 4 | -11/Scrapyard | Discovered new exit (range 16) 120 | -11/Scrapyard | Entered Materials 205 | -10/Materials | Identified exit to Mines 307 | -10/Materials | Build established: Mutant 478 | -10/Materials | Discovered new exit (range 15) 668 | -10/Materials | Discovered new exit (range 17) 876 | -10/Materials | Entered Mines 941 | -10/Mines | Assembled infested the area 1004 | -10/Mines | Core integrity fell below 50% 1028 | -10/Mines | Lost 7 parts (1p2n1u3w) 1047 | -10/Mines | Learned location of Storage (-8) 1080 | -10/Mines | Deemed a non-threat by the Exiles lab entrance 1082 | -10/Mines | Discovered new exit (range 5) 1087 | -10/Mines | Entered Exiles 1111 | -10/Exiles | Discovered new exit (range 15) 1124 | -10/Exiles | Met 8R-AWN 1142 | -10/Exiles | Met EX-HEX 1197 | -10/Exiles | Met EX-DEC 1269 | -10/Exiles | Met EX-BIN 1317 | -10/Exiles | Aligned with FarCom system 1318 | -10/Exiles | Given EX-Vault access code 1355 | -10/Exiles | Opened EX-Vault 1369 | -10/Exiles | Found Field Lobotomy Kit 1392 | -10/Exiles | Warned to stay clear of 0b10 Research branches 1535 | -10/Exiles | Discovered new exit (range 12) 1546 | -10/Exiles | Left Exiles lab with Field Lobotomy Kit 1546 | -10/Exiles | Entered Mines 1557 | -9/Mines | Learned Materials emergency access door positions 1590 | -9/Mines | Met a Derelict bent on vengeance 1689 | -9/Mines | Found DCF Scrap (12 items) 1772 | -9/Mines | Discovered new exit (range 7) 1780 | -9/Mines | Entered Materials 1780 | -8/Materials | Evolved 4 slots: Utility x4 1818 | -8/Materials | Identified exit to Storage 2164 | -8/Materials | Discovered new exit (range 15) 2191 | -8/Materials | Identified exit to Factory 2343 | -8/Materials | Discovered exit to Factory (range 15) 2343 | -8/Materials | Entered Storage 2351 | -8/Storage | Met 01-MTF 2744 | -8/Storage | Assisted by bots powering up and referring to "LRC-V3" 2803 | -8/Storage | Discovered exit to Factory (range 7) 2838 | -8/Storage | Entered Factory 2838 | -7/Factory | Accompanied by 11 allies (01-MTF) 2838 | -7/Factory | Evolved 2 slots: Utility x2 2841 | -7/Factory | 01-MTF left 2984 | -7/Factory | Identified exit to DSF 3032 | -7/Factory | Build established: Commander-Mutant 3102 | -7/Factory | Entered DSF 3102 | -7/DSF | Accompanied by 10 allies 3119 | -7/DSF | Additional patrols routed to DSF 3157 | -7/DSF | Lost 7 allies 3173 | -7/DSF | Lost 5 parts (4u1w) 3205 | -7/DSF | Sterilization system engaged 3225 | -7/DSF | Ambient heat levels rising (+10) 3229 | -7/DSF | Discovered new exit (range 14) 3240 | -7/DSF | Ambient heat levels rising (+10) 3248 | -7/DSF | Identified exit to Factory 3255 | -7/DSF | Ambient heat levels rising (+10) 3270 | -7/DSF | Ambient heat levels rising (+10) 3285 | -7/DSF | Ambient heat levels rising (+10) 3300 | -7/DSF | Ambient heat levels rising (+10) 3315 | -7/DSF | Ambient heat levels rising (+10) 3323 | -7/DSF | Entered Factory 3323 | -6/Factory | Accompanied by 2 allies 3323 | -6/Factory | Evolved 2 slots: Propulsion x1, Utility x1 3406 | -6/Factory | Build established: Mutant 3464 | -6/Factory | Discovered new exit (range 15) 3494 | -6/Factory | Identified exit to Lower Caves 3941 | -6/Factory | Spotted B-75 Beast 4040 | -6/Factory | Assimilated B-75 Beast with FLK Orb 4063 | -6/Factory | Lost 4 parts (3u1w) 4143 | -6/Factory | Lost 4 parts (1p1n2u) 4418 | -6/Factory | Discovered exit to Lower Caves (range 20) 5383 | -6/Factory | Discovered new exit (range 22) 5455 | -6/Factory | Fabricated Hpw. Tractor Beam? 5549 | -6/Factory | Build established: Scavenger-Mutant 5597 | -6/Factory | Fabricated Hpw. Tractor Beam (x2) 5819 | -6/Factory | Core integrity fell below 50% 5987 | -6/Factory | Discovered new exit (range 9) 6052 | -6/Factory | Lost 3 parts (1p1n1w) 6317 | -6/Factory | Identified exit to Factory 6318 | -6/Factory | Entered another Factory area 6318 | -5/Factory | Evolved 2 slots: Propulsion x1, Weapon x1 6383 | -5/Factory | Build established: Scavenger-Gladiator 6988 | -5/Factory | Identified exit to Factory 7038 | -5/Factory | Build established: Gladiator 7038 | -5/Factory | Discovered new exit (range 14) 7084 | -5/Factory | Identified exit to Upper Caves 7087 | -5/Factory | Entered Upper Caves 7093 | -5/Upper Caves | Met a Warlord Commander 7094 | -5/Upper Caves | Learned location of Warlord (-5) 7095 | -5/Upper Caves | Warlord Commander delivered Encrypted Comm Array 7097 | -5/Upper Caves | Found Encrypted Comm Array 7374 | -5/Upper Caves | Attracted the attention of an 0b10 checkpoint 7439 | -5/Upper Caves | Learned 4 Factory zone layouts 7458 | -5/Upper Caves | Spotted B-75 Beast 7505 | -5/Upper Caves | Destroyed B-75 Beast 7525 | -5/Upper Caves | Lost 5 parts (1p2n1u1w) 7590 | -5/Upper Caves | Found DCF Scrap (11 items) 7918 | -5/Upper Caves | Build established: Derelict-Gladiator 8255 | -5/Upper Caves | Lost 3 parts (1n2u) 8285 | -5/Upper Caves | Discovered new exit (range 3) 8299 | -5/Upper Caves | Entered another Upper Caves area 8470 | -5/Upper Caves | Learned Factory security intel 8509 | -5/Upper Caves | Learned Factory stockpile data 8625 | -5/Upper Caves | Discovered new exit (range 14) 8682 | -5/Upper Caves | Entered Warlord 9118 | -5/Warlord | Warlord's base attacked by MAIN.C 9143 | -5/Warlord | Found Prototype Energy Cannon 9143 | -5/Warlord | Identified Vortex Cannon 9148 | -5/Warlord | Found Prototype Energy Cannon 9148 | -5/Warlord | Identified Vortex Driver 9156 | -5/Warlord | Found Prototype Launcher 9156 | -5/Warlord | Identified Vortex Catalyst Activator 9396 | -5/Warlord | Met Warlord 9468 | -5/Warlord | Warlord forces counterattacked 9468 | -5/Warlord | Assimilated I4-4Y2(K) with FLK Orb 9472 | -5/Warlord | Assimilated God Mode with FLK Orb 9479 | -5/Warlord | Assimilated 04-YID(K) with FLK Orb 9490 | -5/Warlord | Attacked by Warlord forces 9505 | -5/Warlord | Allies destroyed Warlord 9683 | -5/Warlord | Spotted Executioner 9713 | -5/Warlord | Destroyed Executioner 9720 | -5/Warlord | System corruption reached 10% 9738 | -5/Warlord | Spotted Executioner 9741 | -5/Warlord | Spotted Striker 9744 | -5/Warlord | Destroyed Executioner 9757 | -5/Warlord | Assimilated Striker with FLK Orb 9759 | -5/Warlord | Spotted Executioner 9766 | -5/Warlord | Core integrity fell below 50% 9767 | -5/Warlord | Destroyed 7 combat bots 9793 | -5/Warlord | Warlord base infiltrated, sounded retreat 9810 | -5/Warlord | Lost 7 parts (1p2n3u1w) 9816 | -5/Warlord | Spotted B-86 Titan 9819 | -5/Warlord | Core integrity fell below 20% 9821 | -5/Warlord | Crushed by falling debris 9823 | -5/Warlord | Destroyed by B-86 Titan with Hardcell Cannon Last Messages --------------- 09815_ Slug penetrates Wall. 09815_ Penetrated by Slug. 09815_ Slug penetrates Wall. 09815_ 7U-CJ3(p) destroyed. 09817_ Slug penetrates 9U-L27(Y). 09817_ Mak. Hacking Suite destroyed. 09818_ ANNOUNCEMENT: Detected 3 Grunt squads, 1 Programmer squad, with prototype support. 09818_ Penetrated by Slug. 09819_ H-66 Slayer Gauss Rifle blasted off. 09819_ H-66 Slayer destroyed. 09819_ DT-JUZ(c) destroyed. 09819_ Penetrated by Slug. 09819_ Slug penetrates Wall. 09821_ Slug penetrates I-47 Archangel. 09821_ The unstable cave ceiling collapses. 09821_ Crushed by falling debris. 09821_ Adv. Melee Analysis Suite destroyed. 09821_ System corrupted by crushing effect (+4). 09822_ WP-U2P(p) resets N6-AJT(m), system corruption cleaned. Map ----- +----------------------------------------------------+ | ????????????????????????????????????????????????? | | ????????????????????????????????????????????????? | | ???? #???????????????????????????????????????????? | | ?? ????????????????????????????????????????????? | | ? ??????????????????????????????????????????????? | | ????????????????????????????????????????????????? | | ###########??????????????????????????????????????? | | # #??????????????????????????????????????? | | " #??????????????????????????????????????? | | # "" #??????????????????????????????????????? | | #"" #??????????????????????????????????????? | | *!""" #??????????????????????????????????????? | | %#""" #??????????????????????????????????????? | | =#"" #?????????????????????? ??????????????? | | =# "" ### ########??????????#; ????????????? | | !# #?????????; ;; ????????????? | | ##+###% #????????# ; ???????????? | | #?#######;; #??????????? | | =[%" ##? ??????????? | | % %* "# ????????? | | ###"##### *!! "#""" ??????? | | % # !! ##""" ??""??? | | ## !%% ##""" #""#?? | | ###""!"####"##""" #""#?? | | #?#"%" #??####""" ;; ""### | | #?#% " #??## # @ % ; " | | /==!## #=" #### # ; " | | =/=*[#%"" """" # #;#+#; [ | | ######=!%*" % %=% % * % | | =*!%![^^=%% *% c % %BB % % %=%=!% ! | | %]!*!%! ! %BB=%! % ! ! %%==! | | ########### g % % = /% %*/% = & | | ??????????#"####;#;# / =%/= % % | | ??#########" &!&"" ;/ "% "" | | ??# # l E "" " " "" | | ??# " "" " # g; "" #### "#####"""### | | ### """""" #=]] mi "" ##????#""#?? | | # """" !"!] ; """ #?????#""#?? | | # *%!%*%%= ; #??????""#?? | | / " " ["*=! # #??????????? | | # """ "" "[ # #??????????? | | # """" "########## #??????????? | | ## #?????????###+####### #??????????? | | ###########???????????# ????# #??????????? | | #??????################ """ ??# #??????????? | | #??????#"""""""""""""## """ #? #??????????? | | ##?????#""" """""""## """ #? ???????????? | | #?????#""""X ""## #? ##+????????????? | | ##?????#""" ""## """ #?? #??????????????? | | #??????# "! ""## ""???#??????????????????? | +----------------------------------------------------+ Best States ------------- Heat Dissipation 67 Coolant Potential 50 Energy Generation 29 Energy Capacity 350 Matter Stores 300 Matter Capacity 300 Sight Range 22 Terrain Scan Density 10 Jamming Range 12 Armor Coverage 900 Resistance: TH 15 Core Shielding 30 Utility Shielding 66 Melee Speed Boost 20 Evasion (%) 55 Targeting Accuracy 5 Melee Accuracy 32 Target Analysis 5 Core Analysis 6 Armor Integrity Analysis 40 Recoil Reduction 4 Particle Charging 20 Salvage Targeting 2 Offensive Hacking 22 Authchip Count 4 Item Schematics ----------------- Hpw. Tractor Beam | -6/Factory | Scanalyzed Robot Schematics ------------------ None Fabricated ------------ Hpw. Tractor Beam | x2 | -6/Factory | Authchip Hpw. Tractor Beam | x2 | -6/Factory | Authchip Repaired ---------- Nothing Alien Tech Used ----------------- None Achievements -------------- None Challenges ------------ None Game ------ Seed ShadingPhysicsSaw Manual? 0 Play Time 03:27:45 Cumulative 466.7 hours Start 2025.05.13 @ 20:18:17 End 2025.05.14 @ 21:14:57 Sessions 17 Manual Loads 0 Difficulty Rogue Special Mode None Game No. 258 Rogue 258 Adventurer 0 Explorer 0 Win Type - Total 14 Types 8/0/5/1/0/0/0/0/0/0 Lore% 54 Gallery% 66 Achievement% 78 Wizard Run 0 Options --------- Layout 0 ASCII 0 Keyboard 1 Movement Arrows Keybinds 0 Fullscreen 1 Font 24/Proggy Map View 76x50 Zoom Use 0% Tactical HUD 1 Map Filters NONE Filters NONE Steam 1 RUN: 256a1511-f71d-42aa-9147-cd72bff26171